Cogmind - Beta 9.4 @@@ ROGUE MODE // 2020.03.10 @ 15:54:37 Player: eldritch Result: Destroyed by G-34 Mercenary with Small Laser Performance ------------- Evolutions (0) 0 Regions Visited (2) 400 Robots Destroyed (5) 25 Value Destroyed (121) 121 Prototype IDs (0) 0 Alien Tech Used (0) 0 Bonus (0) 0 TOTAL SCORE: 546 Bonus ------- None Cogmind --------- Core Integrity 0/250 Matter 281/300 Energy 100/100 System Corruption 2% Temperature Cool (6) Movement Core (100) Ox1 Location -10/Mines Parts ------- > --- POWER (1) -------- (None) > --- PROPULSION (2) --- (None) > --- UTILITY (2) ------ Small Storage Unit Visual Processing Unit > --- WEAPON (2) ------- (None) > --- INVENTORY (6) ---- Improved Ion Engine Light Treads Aluminum Leg Experimental Sensor Array Grenade Launcher Peak State ------------ > --- POWER ------------ Light Ion Engine > --- PROPULSION ------- Aluminum Leg Aluminum Leg > --- UTILITY ---------- Small Storage Unit Visual Processing Unit > --- WEAPON ----------- Light Assault Rifle Heavy Assault Rifle > --- INVENTORY -------- Improved Ion Engine Light Treads Experimental Sensor Array EM Pulse Gun Grenade Launcher [Rating: 10] Favorites ----------- Power Light Ion Engine Engine Light Ion Engine Propulsion Aluminum Leg Leg Aluminum Leg Utility Small Storage Unit Storage Small Storage Unit Processor Visual Processing Unit Weapon Light Assault Rifle Energy Gun EM Pulse Gun Ballistic Gun Light Assault Rifle Launcher Grenade Launcher Build | -11 -10 -10 ------- Run | Scr Mat Min Slots Evolved . | . . . Power . | . . . Propulsion . | . . . Utility . | . . . Weapon . | . . . Parts Attached 9 | . 1 8 Power 2 | . . 2 Engine 2 | . . 2 Core . | . . . Reactor . | . . . Propulsion 2 | . . 2 Treads . | . . . Leg 2 | . . 2 Wheel . | . . . Hover . | . . . Flight . | . . . Utility 1 | . 1 . Device . | . . . Storage . | . . . Processor 1 | . 1 . Hackware . | . . . Protection . | . . . Artifact . | . . . Weapon 4 | . . 4 Energy Gun 2 | . . 2 Energy Cannon . | . . . Ballistic Gun 1 | . . 1 Ballistic Cannon . | . . . Launcher 1 | . . 1 Special Weapon . | . . . Impact Weapon . | . . . Slashing Weapon . | . . . Piercing Weapon . | . . . Special Melee Weapon . | . . . Unidentified Prototypes . | . . . Parts Lost 8 | . . 8 Power 2 | . . 2 Propulsion 2 | . . 2 Utility . | . . . Weapon 4 | . . 4 Highest Loss Streak 6 | . . 6 Average Slot Usage (%) 94 | . 99 93 Engine 12 | . 14 12 Leg 26 | . 28 25 Storage 14 | . 14 14 Processor 13 | . 13 14 Energy Gun 10 | . 14 10 Ballistic Gun 14 | . 14 15 Naked Turns . | . . . Heaviest Build 14 | 10 10 14 Greatest Support 20 | 20 20 20 Greatest Overweight (x) 1 | . . 1 Average Overweight (x) . | . . . Largest Inventory Capacity 6 | 6 6 6 Average Capacity 6 | 6 6 6 Most Carried 6 | 6 6 6 Average Carried 5 | 6 5 5 Final Capacity 6 | 6 6 6 Final Carried 6 | 6 6 5 Class Distribution -------------------- 90% | Mutant 9% | Scavenger-Mutant Dominant Class ---------------- Mutant | -10/Materials Mutant | -10/Mines Resources | -11 -10 -10 ----------- Run | Scr Mat Min Matter Collected 315 | 200 . 115 Remotely . | . . . Salvage Created 104 | . . 104 Parts 10 | . . 10 Haulers Intercepted . | . . . Recyclers Shooed . | . . . Parts Field Recycled . | . . . Retrieved Matter . | . . . Parts Self-Destructed . | . . . Prevented . | . . . Kills | -11 -10 -10 ------- Run | Scr Mat Min Combat Hostiles Destroyed 5 | . . 5 Guns 2 | . . 2 AOE 3 | . . 3 Classes Destroyed 2 | . . 2 Swarmer 3 | . . 3 Grunt 2 | . . 2 Best Kill Streak 3 | . . 3 Combat Bots Only 3 | . . 3 Max Kills in Single Turn 3 | . . 3 Gunslinging . | . . . Exploded 3 | . . 3 Melee . | . . . Uniques/NPCs Destroyed . | . . . Combat | -11 -10 -10 -------- Run | Scr Mat Min Damage Taken 967 | . . 967 Core 250 | . . 250 Absorbed by Shields . | . . . Core Remaining (%) 100 | 100 . . Volleys Fired 32 | . . 32 Largest 2 | . . 2 Hottest 63 | . . 63 Shots Fired 60 | . . 60 Gun 59 | . . 59 Cannon . | . . . Launcher 1 | . . 1 Special . | . . . Kinetic 43 | . . 43 Thermal . | . . . Explosive 1 | . . 1 Electromagnetic 16 | . . 16 Robot Hit Streak 6 | . . 6 Robot Miss Streak 4 | . . 4 Penetration Max . | . . . Secondary Targets . | . . . Shots Hit Robots 37 | . . 37 Core Hits 12 | . . 12 Critical Hits 1 | . . 1 Critical Kills . | . . . Critical Parts Destroyed 1 | . . 1 Melee Attacks . | . . . Impact . | . . . Slashing . | . . . Piercing . | . . . Sneak Attacks . | . . . Combat Hostiles . | . . . Follow-up Attacks . | . . . Damage Inflicted 603 | . . 603 Guns 470 | . . 470 Cannons . | . . . Explosions 128 | . . 128 Melee . | . . . Ramming 5 | . . 5 Kinetic 351 | . . 351 Thermal . | . . . Explosive 128 | . . 128 Electromagnetic 119 | . . 119 Impact . | . . . Slashing . | . . . Piercing . | . . . Highest Corruption 2 | . . 2 Average Corruption 2 | . . 2 Corruption Purged . | . . . Overload Shots . | . . . Overflow Damage . | . . . Projectiles . | . . . Explosions . | . . . Melee . | . . . Knockbacks . | . . . Impact . | . . . Kinetic . | . . . Secondary . | . . . Self-Inflicted Damage 41 | . . 41 Shots 1 | . . 1 Rammed 4 | . . 4 Targets Rammed 4 | . . 4 Kicked . | . . . Crushed . | . . . Highest Temperature 168 | . . 168 Average Temperature 62 | . . 62 Received Heat Transfer 516 | . . 516 Siege Activations . | . . . Robots Corrupted . | . . . Combat Hostiles . | . . . Parts Fried 1 | . . 1 Impact Corruptions . | . . . Robots Melted . | . . . Combat Hostiles . | . . . Parts Melted . | . . . Heat Transferred . | . . . Parts Sabotaged . | . . . Parts Stolen . | . . . Parts Stripped . | . . . Power Chain Reactions . | . . . Missiles Intercepted . | . . . Alert | -11 -10 -10 ------- Run | Scr Mat Min Peak Influence 86 | . 5 86 Average Influence 39 | . 3 49 Maximum Alert Level . | . . . Low Security (%) 100 | 100 100 100 Level 1 . | . . . Level 2 . | . . . Level 3 . | . . . Level 4 . | . . . Level 5 . | . . . High Security . | . . . Max Security . | . . . Squads Dispatched . | . . . Investigation . | . . . Extermination . | . . . Reinforcement . | . . . Assault . | . . . Garrison . | . . . Intercept . | . . . Construction Impeded . | . . . Haulers Reinforced . | . . . Stealth | -11 -10 -10 --------- Run | Scr Mat Min Distress Signals . | . . . Communications Jammed . | . . . Distress Signals . | . . . Times Spotted 19 | . . 19 Peak Tracking Total 5 | . . 5 Tactical Retreats 4 | . . 4 Traps | -11 -10 -10 ------- Run | Scr Mat Min Traps Triggered . | . . . Indirectly . | . . . Trap Hack Attempts . | . . . Triggered . | . . . Disarmed . | . . . Reprogrammed . | . . . Reused . | . . . Traps Extracted . | . . . Installed . | . . . Triggered . | . . . Machines | -11 -10 -10 ---------- Run | Scr Mat Min Machines Disabled 1 | . . 1 Max in Single Turn 1 | . . 1 Machines Sabotaged . | . . . Garrisons Compromised . | . . . Overloaded Fab Kills . | . . . Fab Network Shutdowns . | . . . Hacking | -11 -10 -10 --------- Run | Scr Mat Min Machines Accessed 1 | . 1 . Terminals 1 | . 1 . Fabricators . | . . . Repair Stations . | . . . Recycling Units . | . . . Scanalyzers . | . . . Garrison Access . | . . . Total Hacks 2 | . 2 . Successful 2 | . 2 . Failed . | . . . Catastrophic . | . . . Database Lockouts . | . . . Manual 3 | . 3 . Terminals 2 | . 2 . Fabricators . | . . . Repair Stations . | . . . Recycling Units . | . . . Scanalyzers . | . . . Garrison Access . | . . . Terminal Hacks . | . . . Fabricator Hacks . | . . . Repair Station Hacks . | . . . Recycling Unit Hacks . | . . . Scanalyzer . | . . . Garrison Access Hacks . | . . . Unauthorized Hacks 4 | . 4 . Terminals 2 | . 2 . Track 1 | . 1 . Botnet 1 | . 1 . Fabricators . | . . . Repair Stations . | . . . Recycling Units . | . . . Scanalyzers . | . . . Garrison Access . | . . . Data Cores Recovered . | . . . Used . | . . . Hacking Detections 1 | . 1 . Full Trace Events . | . . . Feedback Events . | . . . Feedback Blocked . | . . . Robot Schematics Acquired . | . . . Robots Built . | . . . Matter . | . . . Time . | . . . Total Robot Build Rating . | . . . Part Schematics Acquired . | . . . Parts Built . | . . . Matter . | . . . Time . | . . . Total Part Build Rating . | . . . Parts Repaired . | . . . Time . | . . . Parts Recycled . | . . . Recycled Matter . | . . . Retrieved Matter . | . . . Retrieved Components . | . . . Parts Scanalyzed . | . . . Part Schematics Acquired . | . . . Parts Damaged . | . . . Bothacking | -11 -10 -10 ------------ Run | Scr Mat Min Used RIF Installer . | . . . Robots Hacked . | . . . Non-combat . | . . . Combat . | . . . Robot Hacks Applied . | . . . Relay Couplers Released . | . . . Robots Rewired . | . . . Allies Hacked . | . . . Hacks Repelled . | . . . Allies | -11 -10 -10 -------- Run | Scr Mat Min Total Allies . | . . . Largest Group . | . . . Highest-Rated Group . | . . . Highest-Rated Ally . | . . . Total Orders . | . . . Ally Attacks . | . . . Total Damage . | . . . Kills . | . . . Allies Corrupted . | . . . Allies Melted . | . . . Intel | -11 -10 -10 ------- Run | Scr Mat Min Robot Analysis Total . | . . . Derelict Logs Recovered . | . . . Drone Launches . | . . . Drone Recoveries . | . . . Exploration | -11 -10 -10 ------------- Run | Scr Mat Min Turns Passed 855 | 5 178 672 Spaces Moved 624 | 5 145 474 Core 42 | . . 42 Treads . | . . . Legs 582 | 5 145 432 Wheels . | . . . Hover . | . . . Flight . | . . . Fastest Speed 100 | 120 120 100 Average Speed 118 | 120 120 118 Slowest Speed 120 | 120 120 120 Overloaded Moves . | . . . Propulsion Burnouts . | . . . Robots Hopped . | . . . Cave-ins Triggered . | . . . Exploration Rate (%) 32 | 2 29 65 Regions Visited 2 Branch Regions 1 Pre-discovered Areas . | . . . Known Exits Taken . | . . . Unknown Exits Taken 2 | 1 1 . Scrap Searched 2 | . . 2 Spaces Dug . | . . . Terrain Destroyed 11 | . . 11 Melee . | . . . Projectile . | . . . AOE 11 | . . 11 Actions | -11 -10 -10 --------- Run | Scr Mat Min Total 683 | 4 149 530 Wait 2 | . . 2 Move 622 | 4 144 474 Hop . | . . . Pick Up 6 | . 2 4 Fast Attach 2 | . 1 1 Attach 2 | . . 2 Detach . | . . . Swap 5 | . . 5 Drop 8 | . 2 6 Fire 32 | . . 32 Melee . | . . . Ram 4 | . . 4 Kick . | . . . Crush . | . . . Escape Stasis . | . . . Rewire . | . . . Trap . | . . . Miscellaneous . | . . . Route ------- -11/Scrapyard -10/Materials -10/Mines History --------- Turn | Location | Event 1 | -11/Scrapyard | Discovered new exit (range 1) 6 | -11/Scrapyard | Entered Materials 109 | -10/Materials | Discovered new exit (range 11) 184 | -10/Materials | Entered Mines 312 | -10/Mines | Build established: Mutant 454 | -10/Mines | Joined a pair of Derelicts in attacking an 0b10 outpost 632 | -10/Mines | Found a damaged Exp. Sensor Array with a note attached 638 | -10/Mines | Found Prototype Device 828 | -10/Mines | Core integrity fell below 50% 841 | -10/Mines | Lost 6 parts (1p2n3w) 841 | -10/Mines | Core integrity fell below 20% 856 | -10/Mines | Destroyed by G-34 Mercenary with Small Laser Last Messages --------------- 00703_ K-01 Serf collects debris. 00705_ Acquired Ion Engine. 00707_ K-01 Serf collects debris. 00711_ Dropped Aluminum Leg. 00714_ K-01 Serf collects debris. 00734_ Searching scrap... 00734_ Found 35 Matter. 00734_ Found Lgt. Cannon. 00734_ Found Sml. Laser. 00735_ Acquired 35 matter. 00779_ Lgt. Assault Rifle destroyed. 00792_ Seismic Survey Station disabled. 00799_ EM Pulse Gun destroyed. 00800_ Aluminum Leg destroyed. 00808_ Hvy. Assault Rifle destroyed. 00809_ Slammed into G-47 Trooper. 00810_ Ion Engine destroyed. 00830_ Slammed into G-47 Trooper. 00833_ Slammed into G-34 Mercenary. 00833_ Destabilizing: System corrupted (+2). Map ----- +----------------------------------------------------+ | ???## #???# #?????? #??????????? | | ???# #???# #?????? #??###?????? | | ???# #???# #?????? #?# ##????? | | ???# #???# #????## ## #????? | | ???## ##### ###### #????? | | ????# #?????? | | ?#### ##????? | | ?# ##### ## #????? | | ?# ### ##???# #?# ????? | | ?# ######????# #??# #???????????? | | ?# #???????# #### #???????????? | | ?### #?????#?# ##??????????? | | ???# #????# ##### ##?????????? | | ???# #????# ## #???# #####?????? | | ???# #????# ?# #???# [ #?????? | | ???# #???## ## #???# ### ####### | | ???# #???# ## ##??## ]##?# | | ???# #???# ##??#####??# | | ???# #???# #########?######### | | ?### ###?## #?????????? | | ?# #??# [ #?????????? | | ?# #??# #### #### #?????????? | | ?# " " #### #??## #??# #?????????? | | ?# """ #???# #?# ########### | | ?# """ #### #???# #?# | | ?# ####@###?## ##?############# | | ?####### g #??####??????????????# | | ???????# #????????????????????? | | ???????# g #????????????????????? | | ???????# """ #????????????????????? | | ???????# """ #????????????????????? | | ???????# """ #????????????????????? | | ???????########????????????????????? | | ???????????????????????????????????? | | ???????????????????????????????????? | | ???????????????????????????????????? | | ???????????????????????????????????? | | ???????????????????????????????????? | | ???????????????????????????????????? | | ???????????????????????????????????? | | | | | | | | | | | | | | | | | | | | | +----------------------------------------------------+ Best States ------------- Heat Dissipation 25 Energy Generation 10 Energy Capacity 250 Matter Stores 300 Matter Capacity 300 Sight Range 18 Terrain Scan Density 10 Evasion (%) 40 Item Schematics ----------------- None Robot Schematics ------------------ None Fabricated ------------ Nothing Alien Tech Used ----------------- None Achievements -------------- None Challenges ------------ None Game ------ Seed BiometalBattleAutogun Manual? 0 Play Time 00:05:07 Cumulative 219.5 hours Start 2020.03.10 @ 15:50:05 End 2020.03.10 @ 15:54:37 Sessions 1 Manual Loads 0 Difficulty Rogue Special Mode None Game No. 501 Rogue 501 Adventurer 0 Explorer 0 Win Type - Total 4 Types 3/0/0/1/0/0/0 Lore% 64 Gallery% 66 Achievement% 56 Wizard Run 0 Options --------- ASCII 0 Keyboard 0 Movement Arrows Keybinds 0 Fullscreen 1 Font 16/SmallcapsGlow Map View 75x55 Tactical HUD 1 Map Filters NONE Filters NONE Steam 1 RUN: 5054e884-fdae-4334-b83d-b4cd102c1598